Cogmind - Beta 13 @@@ ROGUE MODE // 2024.04.26 @ 18:54:03 Player: Gabe+Kate4EVR Result: Destroyed by G-34 Mercenary with Small Laser Performance ------------- Evolutions (1) 500 Regions Visited (2) 400 Robots Destroyed (34) 170 Value Destroyed (737) 737 Prototype IDs (2) 40 Alien Tech Used (0) 0 Bonus (202) 202 TOTAL SCORE: 2049 Bonus ------- Pacifist 200 High Alert Combat Kills 2 Cogmind --------- Core Integrity 0/400 Matter 276/300 Energy 275/275 System Corruption 0% Temperature Cool (6) Movement Walking (120) Location -9/Materials Parts ------- > --- POWER (1) -------- Deuterium Engine > --- PROPULSION (4) --- Improved Aluminum Leg Improved Aluminum Leg Improved Aluminum Leg Improved Aluminum Leg > --- UTILITY (2) ------ Cooling System Medium Storage Unit > --- WEAPON (2) ------- Particle Gun Shotgun > --- INVENTORY (10) --- Deuterium Engine Improved Aluminum Leg Cooling System Weight Redist. System Reaction Control System Field Laser Field Laser Field Laser Heavy Assault Rifle Shotgun Peak State ------------ > --- POWER ------------ Deuterium Engine > --- PROPULSION ------- Improved Aluminum Leg Improved Aluminum Leg Improved Aluminum Leg Improved Aluminum Leg > --- UTILITY ---------- Cooling System Medium Storage Unit > --- WEAPON ----------- Heavy Assault Rifle Shotgun > --- INVENTORY -------- Deuterium Engine Deuterium Engine Cooling System Weight Redist. System Reaction Control System Field Laser Field Laser Field Laser Heavy Assault Rifle Shotgun [Rating: 20] Favorites ----------- Power Cooled Ion Engine Engine Cooled Ion Engine Power Core Light Nuclear Core Propulsion Aluminum Leg Leg Aluminum Leg Utility Medium Storage Unit Device Cooling System Storage Medium Storage Unit Processor Improved Targeting Computer Protection Light Armor Plating Weapon Light Assault Rifle Energy Gun Particle Gun Energy Cannon Beam Cannon Ballistic Gun Light Assault Rifle Build | -11 -10 -9 ------- Run | Yrd Mat Mat Slots Evolved 2 | . . 2 Power . | . . . Propulsion 2 | . . 2 Utility . | . . . Weapon . | . . . Parts Attached 41 | 6 2 33 Power 5 | 1 . 4 Engine 4 | 1 . 3 Core 1 | . . 1 Reactor . | . . . Propulsion 10 | 2 . 8 Treads . | . . . Leg 10 | 2 . 8 Wheel . | . . . Hover . | . . . Flight . | . . . Utility 12 | 1 2 9 Device 5 | . . 5 Storage 3 | 1 1 1 Processor 2 | . . 2 Hackware . | . . . Protection 2 | . 1 1 Artifact . | . . . Weapon 14 | 2 . 12 Energy Gun 2 | . . 2 Energy Cannon 7 | . . 7 Ballistic Gun 5 | 2 . 3 Ballistic Cannon . | . . . Launcher . | . . . Special Weapon . | . . . Impact Weapon . | . . . Slashing Weapon . | . . . Piercing Weapon . | . . . Special Melee Weapon . | . . . Unidentified Prototypes 2 | . . 2 Parts Lost 9 | . . 9 Power 2 | . . 2 Propulsion 2 | . . 2 Utility 1 | . . 1 Weapon 4 | . . 4 Highest Loss Streak 3 | . . 3 To Critical Strikes . | . . . Average Slot Usage (%) 90 | . 98 89 Engine 10 | . 14 10 Leg 33 | . 28 34 Device 4 | . . 5 Storage 11 | . 14 11 Processor 3 | . . 4 Protection 2 | . 12 . Energy Gun 3 | . . 3 Energy Cannon 9 | . . 10 Ballistic Gun 10 | . 28 7 Naked Turns . | . . . Heaviest Build 28 | 12 20 28 Greatest Support 52 | 20 20 52 Greatest Overweight (x) 2 | . . 2 Average Overweight (x) . | . . . Largest Inventory Capacity 10 | 8 10 10 Average Capacity 9 | 5 9 10 Most Carried 10 | . 10 10 Average Carried 8 | . 7 9 Final Capacity 10 | 8 10 10 Final Carried 10 | . 10 10 Class Distribution -------------------- 95% | Mutant 4% | Scavenger-Mutant Dominant Class ---------------- Mutant | -10/Materials Mutant | -9/Materials Resources | -11 -10 -9 ----------- Run | Yrd Mat Mat Matter Collected 903 | 174 . 729 Remotely . | . . . Salvage Created 1254 | . . 1254 Parts 67 | . . 67 Haulers Intercepted 3 | . . 3 Recyclers Shooed 2 | . . 2 Parts Field Recycled . | . . . Retrieved Matter . | . . . Parts Self-Destructed . | . . . Prevented . | . . . Kills | -11 -10 -9 ------- Run | Yrd Mat Mat Combat Hostiles Destroyed 20 | . . 20 Guns 7 | . . 7 Cannons 13 | . . 13 Classes Destroyed 9 | . . 9 Worker 4 | . . 4 Builder 1 | . . 1 Hauler 3 | . . 3 Recycler 3 | . . 3 Watcher 3 | . . 3 Swarmer 4 | . . 4 Grunt 12 | . . 12 Duelist 1 | . . 1 Sentry 3 | . . 3 Best Kill Streak 7 | . . 7 Combat Bots Only 4 | . . 4 Max Kills in Single Turn 1 | . . 1 Gunslinging . | . . . Exploded . | . . . Melee . | . . . Uniques/NPCs Destroyed . | . . . Combat | -11 -10 -9 -------- Run | Yrd Mat Mat Hostile Shots Fired 147 | . 1 146 Missed 26 | . 1 25 Damage Taken 1538 | . . 1538 Core 401 | . . 401 Absorbed by Shields . | . . . Core Remaining (%) 100 | 100 100 . Volleys Fired 109 | . 1 108 Largest 2 | . 2 2 Hottest 136 | . 40 136 Shots Fired 202 | . 2 200 Gun 110 | . 2 108 Cannon 92 | . . 92 Launcher . | . . . Special . | . . . Kinetic 63 | . 2 61 Thermal 139 | . . 139 Explosive . | . . . Electromagnetic . | . . . Robot Hit Streak 11 | . . 11 Robot Miss Streak 5 | . 2 5 Penetration Max . | . . . Secondary Targets . | . . . Shots Hit Robots 131 | . . 131 Core Hits 54 | . . 54 Critical Kills . | . . . Critical Parts Destroyed . | . . . Critical Strikes . | . . . Melee Attacks . | . . . Impact . | . . . Slashing . | . . . Piercing . | . . . Sneak Attacks . | . . . Combat Hostiles . | . . . Follow-up Attacks . | . . . Damage Inflicted 2019 | . . 2019 Guns 876 | . . 876 Cannons 1130 | . . 1130 Explosions . | . . . Melee . | . . . Ramming 13 | . . 13 Kinetic 496 | . . 496 Thermal 1510 | . . 1510 Explosive . | . . . Electromagnetic . | . . . Impact . | . . . Slashing . | . . . Piercing . | . . . Highest Corruption . | . . . Average Corruption . | . . . Corruption Purged . | . . . Corruption Blocked . | . . . Overload Shots . | . . . Overflow Damage 1 | . . 1 Projectiles 1 | . . 1 Explosions . | . . . Melee . | . . . Knockbacks . | . . . Impact . | . . . Kinetic . | . . . Secondary . | . . . Self-Inflicted Damage . | . . . Shots . | . . . Rammed . | . . . Targets Rammed 5 | . . 5 Kicked 5 | . . 5 Crushed . | . . . Highest Temperature 780 | . 6 780 Average Temperature 193 | . 4 194 Received Heat Transfer 621 | . . 621 Effects 37 | . . 37 Shutdowns 3 | . . 3 Energy Bleed 6 | . . 6 Interference 3 | . . 3 Matter Decay 5 | . . 5 Short Circuit 4 | . . 4 Damage (minor) 2 | . . 2 Damage (major) 12 | . . 12 Damage (core) 2 | . . 2 Siege Activations . | . . . Robots Corrupted . | . . . Combat Hostiles . | . . . Parts Fried . | . . . Impact Corruptions . | . . . Robots Melted . | . . . Combat Hostiles . | . . . Parts Melted 6 | . . 6 Heat Transferred 3105 | . . 3105 Parts Sabotaged . | . . . Parts Stolen . | . . . Parts Stripped . | . . . Power Chain Reactions . | . . . Alert | -11 -10 -9 ------- Run | Yrd Mat Mat Peak Influence 418 | . 15 418 Initial 5 | . . 5 Average 167 | . 2 204 Maximum Alert Level 2 | . . 2 Low Security (%) 36 | 100 100 23 Level 1 62 | . . 76 Level 2 . | . . . Level 3 . | . . . Level 4 . | . . . Level 5 . | . . . High Security . | . . . Max Security . | . . . Squads Dispatched 1 | . . 1 Investigation . | . . . Extermination . | . . . Reinforcement 1 | . . 1 Assault . | . . . Garrison . | . . . Intercept . | . . . Searches Triggered . | . . . Construction Impeded . | . . . Haulers Reinforced . | . . . Active Scanning Responses . | . . . Cargo Convoy Interrupts . | . . . Stealth | -11 -10 -9 --------- Run | Yrd Mat Mat Distress Signals 2 | . . 2 Communications Jammed . | . . . Distress Signals . | . . . Times Spotted 33 | . 4 29 Peak Tracking Total 7 | . 4 7 Tactical Retreats 1 | . . 1 Traps | -11 -10 -9 ------- Run | Yrd Mat Mat Traps Triggered . | . . . Indirectly . | . . . Trap Hack Attempts . | . . . Triggered . | . . . Disarmed . | . . . Reprogrammed . | . . . Reused . | . . . Traps Extracted . | . . . Installed . | . . . Triggered . | . . . Machines | -11 -10 -9 ---------- Run | Yrd Mat Mat Machines Disabled . | . . . Max in Single Turn . | . . . Machines Repaired . | . . . Machines Dismantled . | . . . Machines Sabotaged . | . . . Overloaded Fab Kills . | . . . Hacking | -11 -10 -9 --------- Run | Yrd Mat Mat Machines Accessed 1 | . . 1 Terminals . | . . . Fabricators . | . . . Repair Stations . | . . . Recycling Units . | . . . Scanalyzers 1 | . . 1 Garrison Access . | . . . Total Hacks 2 | . . 2 Successful 2 | . . 2 Failed . | . . . Catastrophic . | . . . Database Lockouts . | . . . Manual . | . . . Terminals . | . . . Fabricators . | . . . Repair Stations . | . . . Recycling Units . | . . . Scanalyzers 2 | . . 2 Garrison Access . | . . . Terminal Hacks . | . . . Fabricator Hacks . | . . . Repair Station Hacks . | . . . Recycling Unit Hacks . | . . . Scanalyzer 2 | . . 2 Insert Component 1 | . . 1 Analyze 1 | . . 1 Garrison Access Hacks . | . . . Unauthorized Hacks . | . . . Terminals . | . . . Fabricators . | . . . Repair Stations . | . . . Recycling Units . | . . . Scanalyzers . | . . . Garrison Access . | . . . Data Cores Recovered . | . . . Used . | . . . Hacking Detections . | . . . Full Trace Events . | . . . Feedback Events . | . . . Feedback Blocked . | . . . Robot Schematics Acquired . | . . . Robots Built . | . . . Authchips . | . . . Time . | . . . Total Robot Build Rating . | . . . Part Schematics Acquired 1 | . . 1 Parts Built . | . . . Authchips . | . . . Time . | . . . Total Part Build Rating . | . . . Parts Repaired . | . . . Time . | . . . Parts Recycled . | . . . Recycled Matter . | . . . Retrieved Matter . | . . . Retrieved Components . | . . . Parts Scanalyzed 1 | . . 1 Part Schematics Acquired 1 | . . 1 Parts Damaged . | . . . Bothacking | -11 -10 -9 ------------ Run | Yrd Mat Mat Used RIF Installer . | . . . Robots Hacked . | . . . Non-combat . | . . . Combat . | . . . Robot Hacks Applied . | . . . Relay Couplers Released . | . . . Fabnet Peak Effective % . | . . . Robots Rewired . | . . . Allies Hacked . | . . . Hacks Repelled . | . . . Allies | -11 -10 -9 -------- Run | Yrd Mat Mat Total Allies . | . . . Largest Group . | . . . Highest-Rated Group . | . . . Highest-Rated Ally . | . . . Total Orders . | . . . Ally Attacks . | . . . Total Damage . | . . . Kills . | . . . Allies Corrupted . | . . . Allies Melted . | . . . Intel | -11 -10 -9 ------- Run | Yrd Mat Mat Robot Analysis Total . | . . . Derelict Logs Recovered . | . . . Drone Launches . | . . . Drone Recoveries . | . . . Exploration | -11 -10 -9 ------------- Run | Yrd Mat Mat Turns Passed 1523 | 70 206 1247 Spaces Moved 855 | 54 160 641 Core 4 | 4 . . Treads . | . . . Legs 851 | 50 160 641 Wheels . | . . . Hover . | . . . Flight . | . . . Fastest Speed 50 | 50 120 120 Average Speed 120 | 114 120 121 Slowest Speed 260 | 120 120 260 Overloaded Moves . | . . . Propulsion Burnouts . | . . . Robots Hopped . | . . . Cave-ins Triggered . | . . . Exploration Rate (%) 22 | 3 28 35 Regions Visited 2 Branch Regions . Pre-discovered Areas . | . . . Known Exits Taken . | . . . Unknown Exits Taken 2 | 1 1 . Scrap Searched . | . . . Spaces Dug . | . . . Terrain Destroyed . | . . . Melee . | . . . Projectile . | . . . AOE . | . . . Terrain Rammed . | . . . Walls Destroyed . | . . . Machines Disabled . | . . . Actions | -11 -10 -9 --------- Run | Yrd Mat Mat Total 1154 | 59 171 924 Wait 81 | . . 81 Move 853 | 53 159 641 Hop . | . . . Pick Up 31 | . 9 22 Fast Attach 21 | 6 1 14 Attach 8 | . . 8 Detach 3 | . . 3 Swap 12 | . 1 11 Drop 31 | . . 31 Fire 109 | . 1 108 Melee . | . . . Ram . | . . . Kick 5 | . . 5 Crush . | . . . Escape Stasis . | . . . Rewire . | . . . Trap . | . . . Miscellaneous . | . . . Route ------- -11/Scrapyard -10/Materials -9/Materials (discovered 1 exit: [*Min]) History --------- Turn | Location | Event 6 | -11/Scrapyard | Discovered new exit (range 15) 71 | -11/Scrapyard | Entered Materials 259 | -10/Materials | Discovered new exit (range 16) 277 | -10/Materials | Entered another Materials area 277 | -9/Materials | Evolved 2 slots: Propulsion x2 316 | -9/Materials | Build established: Mutant 445 | -9/Materials | Lost 3 parts (1p1u1w) 733 | -9/Materials | Discovered new exit (range 10) 1100 | -9/Materials | Core integrity fell below 50% 1111 | -9/Materials | Core integrity fell below 20% 1524 | -9/Materials | Destroyed by G-34 Mercenary with Small Laser Last Messages --------------- 01260_ Dropped Aluminum Leg. 01263_ Dropped Deuterium Engine. 01264_ Acquired Imp. Aluminum Leg. 01268_ Dropped Hvy. Assault Rifle. 01269_ Acquired Particle Gun. 01311_ A-02 Transporter destroyed. 01316_ Acquired 37 matter. 01318_ Acquired 99 matter. 01355_ Acquired 101 matter. 01361_ Acquired 17 matter. 01379_ Dropped Med. Storage Unit. 01387_ Acquired 10 matter. 01400_ R-06 Scavenger inserts Sml. Battery into recycling unit. 01403_ R-06 Scavenger inserts Aluminum Leg into recycling unit. 01404_ Recycling unit begins recycling process. 01405_ Recycling unit begins matter transfer process. 01406_ R-06 Scavenger inserts Ion Engine into recycling unit. 01419_ R-06 Scavenger collects Med. Storage Unit. 01513_ G-34 Mercenary destroyed. 01516_ K-01 Serf collects debris. Map ----- +----------------------------------------------------+ | ????????# #????????"" #?????????# ""*% #?# | | ????????# #????????"" #?????????# #?# | | ????????# #??????? #?????????# ### | | ????????# #???????"" #?????????######+## | | ????????# #???????"" #????######### | | ????????# #????????" ?????# !!!!!## | | ###"T"### #???????? ??????# !!!## | | #??????###+###?????# ## ## | | #??????# ####### % %## ####+ | | """"" """"" ######## % # | | ?"""" ""T"" %% %% # | | ??""" ##### ## %% % # | | #???# ## ###### # | | #???# ###########?# # | | #???# #???# #?# + | | #???# #???# #?# ###### "" | | ######## #####+##### #?# % #????#^ "" | | ###+????????# # %% # #?#+####+####??# | | ????????????# # # = #?# % % #??##### | | ????????????# # # #?# ""= """ #??????? | | ????????????# # # #?# "Y """ #??????? | | ????????????# # [ # """ #?# "" """ #??????? | | ????????????# # # """ #?# """ #??????? | | ????????????# # % % +%""" #?# / """ #??????? | | ????????????# # % # ## #??????? | | ????????????# #######+###@= ### #??????? | | ############# ##### ##g################??????? | | ! %k + ???????? | | ! ! #### """????????????? | | ! !! #???????????????????? | | ######+######## ### # ###?????????????????? | | ???# !#####+#### ## #?????????????????? | | ???# # # ##!![ #?????????????????? | | ???# """ # + ##!! *[#?????????????????? | | ???# """ # * # #########?????????????????? | | ???# """ # [ # #?????????????????????????? | | ???# # = # #?????????????????????????? | | ???######## [ # #?????????????????????????? | | ??????????# # #?????????????????????????? | | ??????????# # #?????????????????????????? | | ??????????# # #?????????????????????????? | | ??????????########## #?????????????????????????? | | ???????????????????# #?????????????????????????? | | ???????????????????# #?????????????????????????? | | ???????????????????# #?????????????????????????? | | ???????????????????? #?????????????????????????? | | ???????????????????? #?????????????????????????? | | ???????????????????? ??????????????????????????? | | ?????????????????????????????????????????????????? | | ?????????????????????????????????????????????????? | +----------------------------------------------------+ Best States ------------- Heat Dissipation 50 Energy Generation 14 Energy Capacity 280 Matter Stores 300 Matter Capacity 300 Sight Range 16 Terrain Scan Density 10 Armor Coverage 150 Evasion (%) 55 Targeting Accuracy 6 Item Schematics ----------------- Reaction Control System | -9/Materials | Scanalyzed Robot Schematics ------------------ None Fabricated ------------ Nothing Alien Tech Used ----------------- None Achievements -------------- None Challenges ------------ None Game ------ Seed CooledMobileShield Manual? 0 Play Time 00:15:14 Cumulative 129.5 hours Start 2024.04.26 @ 18:05:01 End 2024.04.26 @ 18:54:03 Sessions 1 Manual Loads 0 Difficulty Rogue Special Mode None Game No. 265 Rogue 265 Adventurer 0 Explorer 0 Win Type - Total 0 Types 0/0/0/0/0/0/0/0/0 Lore% 35 Gallery% 54 Achievement% 37 Wizard Run 0 Options --------- Layout 0 ASCII 0 Keyboard 1 Movement Numpad Keybinds 0 Fullscreen 2 Font 18/X11 Map View 76x50 Zoom Use 0% Tactical HUD 1 Map Filters NONE Filters NONE Steam 1 RUN: b056d805-6a79-4a46-85c1-5fea252b19df